bitfinex/quotes_ETHUSD_20251122
["timestamp","ask_amount","ask_price","bid_price","bid_amount"]
[1763780505486,0.002,2757.8,2757.7,0.4862]
[1763780505819,0.002,2757.8,2757.7,0.9444]
[1763780506970,0.57118188,2757.8,2757.7,0.9444]
[1763780507408,0.002,2757.8,2757.7,0.9444]
[1763780509794,0.002,2757.8,2757.5,0.1942]
[1763780509988,0.002,2757.8,2757.7,0.4862]
[1763780510293,0.57119634,2757.8,2757.7,0.4862]
[1763780510520,0.57119634,2757.8,2757.7,0.9444]
[1763780511324,0.99569634,2757.8,2757.3,0.1942]
[1763780511638,0.405504,2757.7,2757.3,0.6524]
[1763780512339,0.405504,2757.7,2757.6,0.4862]
[1763780512944,0.57119634,2757.8,2757.6,0.9444]
[1763780513245,0.57119634,2757.8,2757.7,0.4862]
[1763780514532,0.69039634,2757.8,2757.3,0.1942]
[1763780514906,1.23748734,2757.8,2757.3,0.1942]
[1763780515106,0.57119634,2757.8,2757.4,0.4582]
[1763780515842,0.57119634,2757.8,2757.3,0.1942]
[1763780516134,0.405504,2757.7,2757.3,0.1942]
[1763780516932,0.4245,2757.4,2757.1,0.1942]
[1763780517172,0.8421726,2757.4,2757.1,0.1942]
[1763780517323,0.4245,2757.4,2757.1,0.1942]
[1763780517524,0.405504,2757.6,2757.1,0.1942]
[1763780518744,0.405504,2757.6,2757.0,0.4582]
[1763780518951,0.830004,2757.6,2757.0,0.4582]
[1763780521263,0.405504,2757.6,2757.0,0.4582]
[1763780521560,0.95009333,2757.6,2757.0,0.4582]
[1763780522066,1.37459333,2757.6,2756.8,0.001]
[1763780522246,0.405504,2757.4,2757.1,0.1942]
[1763780522446,0.405504,2757.4,2757.1,0.6524]
[1763780523158,1.31249664,2757.4,2756.9,0.4582]
[1763780523365,1.31249664,2757.4,2756.8,0.001]
[1763780523659,0.405504,2757.2,2756.8,0.001]
[1763780523858,0.405504,2757.3,2756.8,0.4592]
[1763780524064,0.97484496,2757.3,2757.1,0.4862]
[1763780524568,0.97484496,2757.3,2757.2,0.4862]
[1763780524862,0.97484496,2757.3,2757.2,0.9444]
[1763780524863,0.56934096,2757.3,2757.2,0.9444]
[1763780525261,1.02829264,2757.9,2757.2,0.9444]
[1763780525570,0.407504,2757.8,2757.3,0.4971]
[1763780525863,0.88122293,2757.8,2757.3,0.4971]
[1763780526431,0.002,2757.8,2757.7,0.4648]
[1763780526633,0.002,2757.8,2757.7,0.9619]
[1763780534869,0.002,2757.8,2757.7,0.4648]
[1763780535472,0.002,2757.8,2757.5,0.4971]
[1763780535671,0.002,2757.8,2757.1,0.1942]
[1763780535978,0.002,2757.8,2757.2,0.4971]
[1763780536178,0.04732598,2757.8,2757.2,0.4971]
[1763780538450,0.04732598,2757.8,2757.7,0.4648]
[1763780538451,0.002,2757.8,2757.7,0.4648]
[1763780538646,0.002,2757.8,2757.7,0.9619]
[1763780538886,0.002,2758.1,2757.7,5.13567636]
[1763780539209,0.002,2758.4,2757.7,5.13567636]
[1763780539210,0.002,2758.4,2758.0,4.17169669]
[1763780539379,0.002,2758.4,2758.3,0.6577]
[1763780539876,0.002,2758.4,2758.3,1.1548]
[1763780540385,0.002,2758.4,2758.3,0.6577]
[1763780541500,0.002,2758.4,2758.3,1.1548]
[1763780541953,0.57107641,2758.4,2758.3,1.1548]
[1763780542259,0.57107641,2758.4,2757.7,4.17377636]
[1763780542260,0.99957641,2758.4,2757.9,0.1929]
[1763780542453,0.57107641,2758.4,2757.9,0.1929]
[1763780542697,0.57107641,2758.4,2758.0,0.4971]
[1763780543272,0.57107641,2758.4,2758.3,0.4648]
[1763780543890,0.57107641,2758.4,2758.0,0.4971]
[1763780544597,0.57107641,2758.4,2758.3,0.4648]
[1763780544954,0.57107641,2758.4,2758.3,0.9619]
[1763780546614,0.57107641,2758.4,2758.3,1.42877967]
[1763780547704,0.57107641,2758.4,2758.3,0.9619]
[1763780548009,0.57107641,2758.4,2758.3,0.4648]
[1763780548997,0.57107641,2758.4,2758.1,0.4971]
[1763780550893,0.57107641,2758.4,2758.3,0.4648]
[1763780552009,0.99957641,2758.4,2757.7,0.46687967]
[1763780552296,0.99957641,2758.4,2758.0,0.001]
[1763780553379,0.57107641,2758.4,2758.3,0.4648]
[1763780553902,0.57107641,2758.4,2758.3,0.9619]
[1763780554100,0.57107641,2758.4,2758.3,0.4648]
[1763780555404,0.57107641,2758.4,2758.1,0.1929]
[1763780555574,0.99957641,2758.4,2758.0,0.001]
[1763780556292,0.99957641,2758.4,2758.0,0.472]
[1763780556683,0.99957641,2758.4,2758.0,0.001]
[1763780556993,0.1203,2758.1,2758.0,0.001]
[1763780557199,0.405504,2758.2,2758.0,0.001]
[1763780557583,0.407504,2758.4,2758.0,0.001]
[1763780557929,0.525804,2758.1,2758.0,0.001]
[1763780560111,0.951204,2758.1,2758.0,0.001]
[1763780560284,2.36546841,2758.1,2758.0,0.001]
[1763780560605,3.84167999,2758.1,2758.0,0.001]
[1763780562198,3.06415446,2758.1,2758.0,0.001]
[1763780563615,3.88669544,2758.1,2758.0,0.001]
[1763780564415,7.52239144,2758.1,2758.0,0.001]
[1763780564577,7.47707039,2758.1,2758.0,0.001]
[1763780564980,17.1882905,2758.1,2758.0,0.001]
[1763780565189,16.2467835,2758.1,2758.0,0.001]
[1763780565384,15.82915665,2758.1,2758.0,0.001]
[1763780565579,17.12377004,2758.1,2758.0,0.001]
[1763780565882,20.93542604,2758.1,2758.0,0.001]
[1763780566278,21.35305289,2758.1,2758.0,0.001]
[1763780566835,19.5133395,2758.1,2758.0,0.001]
[1763780566981,20.85395289,2758.1,2758.0,0.001]
[1763780567187,19.5593395,2758.1,2758.0,0.001]
[1763780568079,19.7411375,2758.1,2758.0,0.001]
[1763780568486,0.405504,2757.6,2757.5,0.001]
[1763780568717,23.93716267,2757.6,2757.5,0.001]
[1763780568903,1.31249664,2757.4,2756.8,0.001]
[1763780569106,5.16588835,2756.9,2756.8,0.001]
[1763780569330,8.20415719,2756.9,2756.8,0.001]
[1763780569618,8.62955719,2756.9,2756.8,0.001]
[1763780570622,9.82139366,2756.9,2756.8,0.001]
[1763780570826,21.20628635,2756.9,2756.8,0.001]
[1763780571032,20.98616935,2756.9,2756.8,0.001]
[1763780571238,0.405504,2756.6,2756.2,0.001]
[1763780571457,21.80724742,2756.6,2756.2,0.001]
[1763780571591,0.405504,2756.4,2756.2,0.001]
[1763780571790,22.6792432,2756.3,2756.2,0.001]
[1763780572108,24.06457791,2756.3,2756.2,0.001]
[1763780572307,18.66254175,2756.3,2756.2,0.001]
[1763780572831,27.31363766,2756.3,2756.2,0.001]
[1763780573030,23.58245466,2756.3,2756.2,0.001]
[1763780573197,22.80824504,2756.3,2756.2,0.001]
[1763780573528,19.19937804,2756.3,2756.2,0.001]
[1763780573692,23.90409604,2756.3,2756.2,0.001]
[1763780573898,19.59854464,2756.2,2756.1,0.001]
[1763780574095,21.06531009,2756.2,2756.1,0.001]
[1763780574293,21.18561009,2756.2,2756.1,0.001]
[1763780574726,21.88701709,2756.2,2756.1,0.001]
[1763780574931,19.13393609,2756.2,2756.1,0.001]
[1763780575149,18.61464309,2756.2,2756.1,0.001]
[1763780575346,19.80441849,2756.2,2756.1,0.001]
[1763780575641,19.38679164,2756.2,2755.5,0.001]
[1763780575865,24.11406435,2755.9,2755.5,0.001]
[1763780576028,26.1468666,2755.9,2755.5,0.001]
[1763780576643,23.8131196,2755.9,2755.5,0.001]
[1763780576852,24.6783636,2755.9,2755.5,0.001]
[1763780577635,24.40679515,2755.9,2755.5,0.001]
[1763780577818,20.07744175,2755.9,2755.5,0.001]
[1763780578921,22.79200675,2755.9,2755.5,0.001]
[1763780579325,22.78475051,2755.9,2755.5,0.001]
[1763780579924,35.91252488,2755.9,2755.5,0.001]
[1763780580554,15.39842742,2755.9,2755.5,0.001]
[1763780580758,14.43755305,2755.9,2755.5,0.001]
[1763780580963,3.68689171,2756.0,2755.5,0.001]
[1763780581136,0.56976554,2756.2,2755.9,0.484]
[1763780581461,1.00707437,2756.9,2756.1,0.6702]
[1763780581628,4.45550093,2756.8,2756.2,0.955]
[1763780581830,0.90699264,2756.4,2755.9,0.1862]
[1763780582031,4.1370618,2756.7,2755.9,0.6572]
[1763780582364,0.90699264,2756.6,2756.4,0.484]
[1763780582568,0.405504,2756.5,2756.4,0.484]
[1763780583061,0.405504,2756.6,2756.4,0.484]
[1763780583266,0.57455658,2756.5,2755.9,0.1862]
[1763780583478,0.405504,2756.1,2755.7,0.1862]
[1763780583783,0.405504,2756.1,2755.8,0.472]
[1763780584078,0.405504,2756.1,2756.0,0.484]
[1763780584453,0.405504,2756.1,2756.0,0.955]
[1763780586770,0.5696305,2756.2,2756.0,0.955]
[1763780586969,0.405504,2756.4,2756.1,0.9426]
[1763780587170,0.77084839,2756.8,2756.4,0.4606]
[1763780587375,1.31732984,2756.8,2756.5,0.482]
[1763780587544,0.405504,2756.7,2756.4,0.4606]
[1763780587749,0.405504,2756.5,2756.0,0.482]
[1763780588184,0.405504,2756.5,2756.4,0.4606]
[1763780588681,0.405504,2756.5,2756.4,0.9426]
[1763780589675,0.405504,2756.5,2756.4,0.4606]
[1763780589861,0.90544284,2756.5,2756.0,0.482]
[1763780590050,1.67853156,2756.5,2756.0,0.482]
[1763780590253,2.24808979,2756.5,2756.4,0.4606]
[1763780590799,2.37148979,2756.5,2755.9,0.001]
[1763780590978,0.405504,2756.3,2755.9,0.001]
[1763780591284,0.405504,2756.3,2756.0,0.482]
[1763780591285,1.17859272,2756.3,2756.0,0.482]
[1763780591484,0.405504,2756.4,2756.2,0.4606]
[1763780591785,0.450853,2756.4,2756.2,0.4606]
[1763780591986,1.22487014,2756.4,2756.2,0.4606]
[1763780592167,1.17952114,2756.4,2756.3,0.4606]
[1763780593087,0.77401714,2756.4,2756.3,0.9426]
[1763780593288,0.56955823,2756.5,2756.3,0.9426]
[1763780593503,0.56955823,2756.5,2756.4,0.9426]
[1763780593705,0.77559006,2756.6,2756.4,0.9426]
[1763780593870,0.77559006,2756.7,2756.5,0.482]
[1763780594066,0.77559006,2756.6,2756.5,0.482]
[1763780594255,0.77559006,2756.6,2756.5,0.9426]
[1763780594994,1.18109406,2756.6,2755.9,0.483]
[1763780595159,0.405504,2756.4,2755.9,0.483]
[1763780595490,0.405504,2756.2,2755.9,0.483]
[1763780595922,0.405504,2756.4,2756.1,0.4606]
[1763780596078,0.405504,2756.2,2756.1,0.4606]
[1763780596486,0.405504,2756.4,2756.1,0.9426]
[1763780596687,0.405504,2756.2,2756.1,0.9426]
[1763780596874,0.405504,2756.2,2755.9,0.001]
[1763780596875,0.405504,2756.5,2756.3,0.4606]
[1763780597100,0.405504,2756.5,2756.4,0.4606]
[1763780597295,1.18322028,2756.5,2756.4,0.4606]
[1763780598009,1.18322028,2756.5,2756.1,0.482]
[1763780598180,1.36637837,2756.5,2756.4,0.4606]
[1763780598510,2.55804006,2756.5,2756.4,0.4606]
[1763780599212,2.55804006,2756.5,2756.4,0.9426]
[1763780599905,2.55804006,2756.5,2756.4,0.4606]
[1763780600285,1.59716569,2756.5,2756.4,0.9426]
[1763780601575,0.77812948,2756.5,2756.4,0.9426]
[1763780602077,0.56952305,2756.7,2756.4,0.9426]
[1763780602373,0.56952305,2756.7,2756.6,0.4606]
[1763780602579,1.34722185,2756.7,2756.6,0.4606]
[1763780602779,1.34722185,2756.7,2756.6,0.9426]
[1763780604385,0.56952305,2756.7,2756.6,0.9426]
[1763780604916,1.34720815,2756.7,2756.6,0.9426]
[1763780605131,0.56952305,2756.7,2756.6,0.9426]
[1763780606118,0.002,2757.1,2756.6,0.9426]
[1763780606318,0.77853634,2757.0,2756.7,0.482]
[1763780606550,0.407504,2757.1,2757.0,0.4606]
[1763780606856,1.18592096,2757.1,2757.0,0.4606]
[1763780607731,1.18592096,2757.1,2757.0,0.8926]
[1763780609048,1.18592096,2757.1,2757.0,0.4106]
[1763780609256,1.40080049,2757.1,2757.0,0.4106]
[1763780610624,1.40080049,2757.1,2757.0,0.8926]
[1763780611032,1.40080049,2757.1,2757.0,0.4106]
[1763780611359,1.40080049,2757.1,2756.7,0.482]
[1763780611573,0.77841696,2757.0,2756.7,0.482]
[1763780611774,0.77841696,2756.9,2756.7,0.482]
[1763780611989,0.62238353,2757.1,2756.7,0.482]
[1763780612143,0.7802747,2757.0,2756.7,0.482]
[1763780612682,0.002,2757.1,2756.9,0.4606]
[1763780612834,0.002,2757.1,2757.0,0.87711779]
[1763780613035,0.002,2757.1,2757.0,0.4606]
[1763780613279,0.002,2757.1,2757.0,0.9426]
[1763780616780,0.002,2757.1,2757.0,4.6471779]
[1763780619774,0.5713975,2757.3,2757.0,4.6471779]
[1763780619948,0.5713975,2757.3,2757.2,4.3956779]
[1763780620147,0.002,2757.3,2757.2,5.38062569]
[1763780621955,0.002,2757.3,2757.2,6.28761833]
[1763780622265,0.002,2757.4,2757.3,0.90699264]
[1763780622447,0.002,2757.4,2757.3,1.89399264]
[1763780624644,0.002,2757.4,2757.3,0.987]
[1763780624844,0.002,2757.4,2757.3,5.22964047]
[1763780631688,0.002,2757.4,2757.3,5.17964047]
[1763780633189,0.002,2757.9,2757.7,9.080088]
[1763780633389,0.002,2757.9,2757.8,6.00407454]
[1763780633562,0.002,2757.9,2757.8,6.04033532]
[1763780633764,0.002,2757.9,2757.8,9.30449468]
[1763780634097,0.002,2758.1,2757.8,9.30449468]
[1763780634098,0.002,2758.1,2757.9,1.31249664]
[1763780634302,0.002,2758.1,2758.0,4.1957779]
[1763780634489,0.002,2758.1,2758.0,4.6915779]
[1763780634691,0.4536,2759.9,2758.1,0.405504]
[1763780635000,0.4536,2759.9,2758.3,11.2046389]
[1763780635296,0.4536,2759.9,2758.3,5.30267054]
[1763780635498,0.4536,2759.8,2758.3,5.79847054]
[1763780635699,0.4536,2759.4,2758.3,5.79847054]
[1763780635863,0.4536,2759.2,2758.3,5.79847054]
[1763780636062,0.1899,2758.8,2758.3,1.39819264]
[1763780636459,0.1899,2758.8,2758.3,0.90699264]
[1763780636899,0.6435,2758.8,2758.3,1.39819264]
[1763780637397,0.6435,2758.8,2758.3,1.07104705]
[1763780637797,0.6435,2758.8,2758.1,4.4002779]
[1763780637798,0.1063,2758.4,2758.1,0.1999]
[1763780638000,0.002,2758.4,2758.1,0.1999]
[1763780638300,0.002,2758.4,2758.0,0.90699264]
[1763780638502,0.002,2758.4,2758.0,1.40279264]
[1763780638798,0.002,2758.4,2758.0,1.91352969]
[1763780639198,0.002,2758.4,2758.0,0.51073705]
[1763780639488,0.002,2758.4,2758.0,1.00653705]
[1763780639663,0.1043,2758.1,2757.6,0.90699264]
[1763780639907,0.002,2758.4,2757.7,4.2003779]
[1763780640137,0.002,2758.4,2758.0,0.4912]
[1763780640727,0.57102424,2758.4,2758.0,0.4912]
[1763780641055,0.57102424,2758.4,2757.5,3.7045779]
[1763780641056,0.1043,2758.1,2757.5,0.4958]
[1763780641212,0.57102424,2758.4,2757.2,0.1999]
[1763780641213,0.4501,2758.3,2757.2,0.1999]
[1763780641412,0.4501,2758.3,2757.2,1.60269264]
[1763780641413,0.64291169,2758.3,2757.2,1.60269264]
[1763780641628,0.4501,2758.3,2757.3,3.7045779]
[1763780641830,0.4536,2758.2,2757.3,3.7045779]
[1763780641998,0.1043,2757.4,2756.9,4.2003779]
[1763780642413,0.1802,2757.9,2757.3,0.4912]
[1763780643436,0.6338,2757.9,2757.3,0.4912]
[1763780643637,0.6338,2757.9,2757.3,0.4922]
[1763780643836,0.1802,2757.9,2757.3,0.4922]
[1763780644039,0.4536,2757.8,2757.3,0.4922]
[1763780644344,0.0955,2757.4,2757.3,0.001]
[1763780647768,2.35626888,2758.6,2757.3,0.001]
[1763780647769,1.43207437,2758.6,2757.3,4.6275779]
[1763780647968,0.78011942,2758.5,2757.6,4.1665779]
[1763780648134,0.4712,2758.3,2757.6,0.462]
[1763780648337,0.2572,2757.7,2757.3,0.001]
[1763780648571,4.1757779,2758.3,2757.3,0.001]
[1763780648572,0.78011447,2758.2,2757.3,0.001]
[1763780648773,0.405504,2758.2,2757.4,0.46]
[1763780649063,0.4712,2758.1,2757.3,0.001]
[1763780651164,0.078,2757.4,2757.3,0.001]
[1763780651565,0.1792,2757.6,2757.3,0.001]
[1763780652365,0.1802,2757.9,2757.3,0.461]
[1763780653271,0.1802,2757.9,2757.3,0.89574779]
[1763780654276,0.1802,2757.9,2757.3,0.461]
[1763780655071,0.6514,2757.9,2757.3,0.001]
[1763780656008,0.1802,2757.9,2757.3,0.001]
[1763780656300,0.1802,2757.9,2757.3,0.461]
[1763780657757,0.1802,2757.9,2757.3,0.001]
[1763780657960,0.078,2757.4,2757.3,0.001]
[1763780658356,0.5453,2757.4,2757.3,0.001]
[1763780660002,0.950804,2757.4,2757.3,0.001]
[1763780660162,1.41634219,2757.4,2757.3,0.001]
[1763780660359,5.12092009,2757.4,2757.3,0.001]
[1763780660560,6.02791273,2757.4,2757.3,0.001]
[1763780660760,2.32333483,2757.4,2757.3,0.001]
[1763780661064,6.34207,2757.4,2757.3,0.001]
[1763780661871,1.31249664,2757.3,2757.0,0.001]
[1763780662200,1.39049664,2757.1,2757.0,0.001]
[1763780662361,1.85779664,2757.1,2757.0,0.001]
[1763780662767,0.405504,2756.9,2756.7,0.001]
[1763780663002,1.31249664,2756.7,2756.4,0.001]
[1763780663301,5.10297054,2756.5,2756.4,0.001]
[1763780663602,5.10297054,2756.5,2755.8,0.001]
[1763780663603,1.31249664,2756.4,2755.8,0.001]
[1763780663808,5.50847454,2756.0,2755.8,0.001]
[1763780664102,1.79959664,2755.9,2755.6,0.001]
[1763780664301,5.09507454,2755.7,2755.6,0.001]
[1763780664665,5.56237454,2755.7,2755.6,0.001]
[1763780665513,5.09507454,2755.7,2755.6,0.001]
[1763780665819,5.56237454,2755.7,2755.6,0.001]
[1763780666155,6.14875453,2755.7,2755.6,0.001]
[1763780666983,1.31249664,2755.6,2755.5,0.001]
[1763780667188,1.86169664,2755.6,2755.5,0.001]
[1763780668773,0.078,2755.6,2755.5,0.001]
[1763780669205,0.405504,2755.9,2755.5,0.001]
[1763780669206,1.37429264,2756.0,2755.5,0.001]
[1763780669403,0.0819,2755.6,2755.5,0.001]
[1763780669801,0.4634,2755.9,2755.5,0.001]
[1763780670001,0.90699264,2756.0,2755.5,0.001]
[1763780670276,0.078,2755.6,2755.5,0.001]
[1763780673526,0.56964556,2755.6,2755.5,0.001]
[1763780673733,0.56964556,2755.6,2755.5,0.463]
[1763780673881,0.4712,2756.1,2755.5,0.463]
[1763780674073,0.56962038,2755.8,2755.5,0.463]
[1763780674273,1.0190799,2756.1,2755.5,0.463]
[1763780674506,0.1584,2756.8,2756.0,0.462]
[1763780674685,1.4028338,2756.8,2756.1,0.462]
[1763780674900,0.6296,2756.8,2756.1,0.462]
[1763780675214,0.405504,2756.7,2756.1,0.6439]
[1763780675711,0.078,2756.2,2755.5,0.001]
[1763780675911,1.41963835,2756.6,2755.5,0.4928]
[1763780676208,0.4892,2756.4,2755.5,0.4928]
[1763780676609,0.90699264,2756.6,2755.5,0.4928]
[1763780677312,0.56950711,2756.5,2755.5,0.4928]
[1763780679314,0.4892,2756.4,2755.5,0.4928]
[1763780679512,0.90699264,2756.3,2755.5,0.4928]
[1763780679680,0.04535229,2756.2,2755.5,0.4928]
[1763780679874,0.53455229,2756.2,2755.5,0.4928]
[1763780680478,0.99100517,2756.5,2755.5,0.4928]
[1763780680479,0.58550117,2756.5,2755.5,0.4928]
[1763780681591,1.07470117,2756.5,2755.5,0.4928]
[1763780681908,0.19816938,2756.4,2755.5,0.4928]
[1763780682114,0.68736938,2756.4,2755.5,0.4928]
[1763780682885,0.19816938,2756.4,2755.5,0.4928]
[1763780683221,0.19816938,2756.4,2755.5,0.001]
[1763780683222,1.84704729,2756.3,2755.5,0.001]
[1763780683622,0.4892,2756.2,2755.5,0.001]
[1763780683787,0.0602,2755.6,2755.5,0.001]
[1763780684224,1.0113295,2755.6,2755.5,0.001]
[1763780684398,0.4662295,2755.6,2755.5,0.491]
[1763780684730,1.17966677,2755.9,2755.5,0.491]
[1763780685028,0.405504,2755.9,2755.5,0.001]
[1763780685202,0.0602,2755.6,2755.5,0.001]
[1763780686012,0.5451,2755.6,2755.5,0.001]
[1763780686197,0.77462555,2755.7,2755.5,0.001]
[1763780686499,0.77462555,2755.8,2755.5,0.001]
[1763780686734,0.4915,2755.6,2755.5,0.001]
[1763780687034,1.26612555,2755.6,2755.5,0.001]
[1763780687521,1.32402555,2755.6,2755.5,0.001]
[1763780688524,1.64775069,2755.6,2755.5,0.001]
[1763780689199,0.77462555,2755.6,2755.5,0.491]
[1763780689434,0.77462555,2755.6,2755.5,0.9828]
[1763780689600,0.96087437,2756.0,2755.5,0.9828]
[1763780689967,0.77765687,2755.9,2755.6,0.4918]
[1763780690098,0.77765687,2755.8,2755.6,0.4918]
[1763780690295,0.96087437,2756.1,2755.6,0.4918]
[1763780690618,0.77848846,2756.0,2755.6,0.4918]
[1763780690820,0.77848846,2755.9,2755.6,0.4918]
[1763780690994,0.96087437,2756.3,2756.1,0.49]
[1763780691330,0.77910058,2756.2,2756.1,0.49]
[1763780692925,1.34861844,2756.2,2756.1,0.49]
[1763780693349,1.34861844,2756.2,2756.1,0.6764]
[1763780693628,1.34861844,2756.2,2756.1,1.1682]
[1763780694046,0.56951786,2756.2,2756.1,1.1682]
[1763780694636,0.96087437,2756.7,2756.1,1.1682]
[1763780694798,0.78049848,2756.6,2756.2,0.4918]
[1763780694992,0.78049848,2756.5,2756.2,0.4918]
[1763780695235,1.11927437,2756.9,2756.2,0.4918]
[1763780695536,0.78041814,2756.8,2756.2,4.18690232]
[1763780695715,1.00821186,2757.1,2756.3,0.4918]
[1763780695716,0.002,2756.5,2756.3,0.4918]
[1763780696100,0.002,2756.5,2756.4,0.49]
[1763780696594,0.002,2756.5,2756.4,0.9818]
[1763780696796,0.0622,2756.5,2755.5,0.001]
[1763780696998,0.90699264,2756.0,2755.5,0.001]
[1763780697196,2.29706787,2755.9,2755.5,0.001]
[1763780697503,0.77989657,2755.8,2755.6,0.4918]
[1763780697703,0.77989657,2755.7,2755.5,0.001]
[1763780697896,0.96087437,2756.0,2755.5,0.001]
[1763780698226,0.78000714,2755.9,2755.5,0.001]
[1763780698425,0.78000714,2755.8,2755.5,0.4928]
[1763780698729,0.78000714,2755.7,2755.5,0.4928]
[1763780698934,1.24585934,2755.6,2755.5,0.001]
[1763780699228,6.09733496,2755.6,2755.5,0.001]
[1763780701560,6.09733496,2755.6,2755.5,0.491]
[1763780701561,0.78015534,2755.6,2755.5,0.491]
[1763780701727,0.78015534,2755.6,2755.5,0.9828]
[1763780701928,0.78015534,2755.6,2755.5,0.001]
[1763780702452,1.74734798,2755.6,2755.5,0.001]
[1763780702661,2.23224798,2755.6,2755.5,0.001]
[1763780702860,3.41692207,2755.6,2755.5,0.001]
[1763780703023,5.12221011,2755.6,2755.5,0.001]
[1763780703221,4.16072729,2755.6,2755.5,0.001]
[1763780704153,2.51990105,2755.6,2755.5,0.001]
[1763780704349,0.9737146,2756.3,2755.5,0.9828]
[1763780704526,0.77905518,2756.2,2755.6,0.9818]
[1763780704723,0.77905518,2756.1,2755.7,0.4918]
[1763780705023,1.0190636,2756.4,2755.7,0.4918]
[1763780705247,0.77917222,2756.3,2755.7,0.4918]
[1763780705451,0.045349,2756.4,2755.7,0.4918]
[1763780705656,0.7792117,2756.3,2755.7,0.4918]
[1763780705859,0.045349,2756.4,2755.7,0.4918]
[1763780706061,0.77915879,2756.3,2755.7,0.4918]
[1763780706353,0.77913642,2756.4,2755.7,0.4918]
[1763780706554,0.77913642,2756.3,2755.7,0.4918]
[1763780706759,0.77913642,2756.4,2755.7,0.4918]
[1763780706958,0.77913642,2756.3,2755.7,0.4918]
[1763780707126,0.002,2756.5,2755.7,0.4918]
[1763780707127,0.77913642,2756.4,2755.7,0.4918]
[1763780707323,0.82448707,2756.3,2755.7,0.4918]
[1763780707560,0.77897914,2756.2,2755.5,0.001]
[1763780707763,0.77897914,2756.1,2755.5,0.001]
[1763780707943,0.56962045,2756.1,2755.5,0.001]
[1763780708344,0.61497439,2756.1,2755.5,0.001]
[1763780708676,0.82442092,2756.1,2755.5,0.001]
[1763780708847,0.04535394,2756.1,2755.5,0.001]
[1763780709846,0.77901058,2756.2,2755.5,0.4513]
[1763780710045,0.77901058,2756.3,2755.5,0.4513]
[1763780711453,0.56960962,2756.2,2755.5,0.4513]
[1763780712480,0.56960962,2756.2,2756.1,0.4585]
[1763780712789,0.56960962,2756.2,2756.1,0.6579]
[1763780713083,0.56960962,2756.2,2755.6,0.4503]
[1763780713270,0.62610962,2756.2,2755.6,0.4503]
[1763780714646,0.04535394,2756.1,2755.5,0.001]
[1763780715302,0.53825394,2756.1,2755.5,0.001]
[1763780715501,0.20148562,2756.0,2755.5,0.001]
[1763780715707,0.0565,2755.6,2755.5,0.001]
[1763780716093,0.4885,2755.9,2755.5,0.001]
[1763780716304,0.0609,2755.6,2755.5,0.001]
[1763780716869,0.96789264,2755.6,2755.5,0.001]
[1763780717101,1.91839214,2755.6,2755.5,0.001]
[1763780717490,0.5313995,2755.6,2755.5,0.001]
[1763780717697,5.14729496,2755.6,2755.5,0.001]
[1763780717900,5.92631464,2755.6,2755.5,0.001]
[1763780718499,6.33181864,2755.6,2755.5,0.001]
[1763780718708,7.85031782,2755.6,2755.5,0.001]
[1763780718905,1.85728122,2755.5,2755.3,0.001]
[1763780719105,7.10121979,2755.4,2755.3,0.001]
[1763780719308,10.29920549,2755.4,2755.3,0.001]
[1763780719509,7.98387689,2755.4,2755.3,0.001]
[1763780719705,10.14032189,2755.4,2755.3,0.001]
[1763780719911,11.05868289,2755.4,2755.3,0.001]
[1763780720372,12.0312701,2755.4,2755.3,0.001]
[1763780720572,11.55832889,2755.4,2755.3,0.001]
[1763780720774,12.34947289,2755.4,2755.3,0.001]
[1763780720974,7.98387689,2755.4,2755.3,0.001]
[1763780721171,10.84432189,2755.4,2755.3,0.001]
[1763780721376,11.47862789,2755.4,2755.3,0.001]
[1763780721570,12.86633789,2755.4,2755.3,0.001]
[1763780721797,13.43620776,2755.4,2755.3,0.001]
[1763780722014,9.18805276,2755.4,2755.3,0.001]
[1763780722202,14.55058323,2755.4,2755.3,0.001]
[1763780723126,13.98071336,2755.4,2755.3,0.001]
[1763780723335,12.68227978,2755.4,2755.3,0.001]
[1763780723628,13.01457878,2755.4,2755.3,0.001]
[1763780723808,12.69757878,2755.4,2755.3,0.001]
[1763780724205,12.14546378,2755.4,2755.3,0.001]
[1763780724413,8.07216529,2755.4,2755.3,0.001]
[1763780724596,7.10121979,2755.4,2755.3,0.001]
[1763780724998,14.18311779,2755.4,2755.3,0.001]
[1763780725198,16.13738111,2755.4,2755.3,0.001]
[1763780725394,16.13738111,2755.4,2755.0,0.001]
[1763780725395,1.31249664,2755.1,2755.0,0.001]
[1763780725595,12.78126503,2755.1,2755.0,0.001]
[1763780725843,9.87284403,2755.1,2755.0,0.001]
[1763780726146,7.27355923,2755.1,2755.0,0.001]
[1763780726506,12.48227481,2755.1,2755.0,0.001]
[1763780726812,10.93201081,2755.1,2755.0,0.001]
[1763780727331,13.31242881,2755.1,2755.0,0.001]
[1763780727502,13.93214532,2755.1,2755.0,0.001]
[1763780727703,13.73581269,2755.1,2755.0,0.001]
[1763780728313,20.63515969,2755.1,2755.0,0.001]
[1763780728514,12.78831435,2755.1,2755.0,0.001]
[1763780728740,8.11960274,2755.0,2754.9,0.001]
[1763780729040,9.13490459,2755.0,2754.9,0.001]
[1763780729238,1.31249664,2754.9,2754.0,0.001]
[1763780729435,4.74879496,2754.4,2754.0,0.001]
[1763780730036,5.24169496,2754.4,2754.0,0.001]
[1763780730846,5.69258089,2754.4,2754.0,0.001]
[1763780731010,7.82234473,2754.4,2754.0,0.001]
[1763780731347,1.31249664,2754.3,2754.0,0.001]